fUSD/lending_fUSD_20240109
["ID","MTS","AMOUNT","RATE_DAILY","PERIOD"]
[310936714,1704822767662,-23952.72,0.00041589,30]
[310936715,1704822767672,-1303.54,0.00041589,30]
[310936716,1704822767683,-2435.46,0.00041589,30]
[310936717,1704822767693,-752.79,0.00041589,30]
[310936718,1704822767703,-500.0,0.00041589,30]
[310936719,1704822767713,-847.62,0.00041589,30]
[310936720,1704822767723,-500.0,0.00041589,30]
[310936721,1704822767734,-689.54,0.00041589,30]
[310936722,1704822767744,-7922.58,0.00041589,30]
[310936723,1704822767754,-2584.24,0.00041589,30]
[310936724,1704822767764,-947.91,0.00041589,30]
[310936725,1704822767775,-2075.66,0.00041589,30]
[310936726,1704822767786,-846.93,0.00041589,30]
[310936727,1704822767797,-500.0,0.00041589,30]
[310936728,1704822767808,-6851.14,0.00041589,30]
[310936729,1704822767818,-3535.22,0.00041589,30]
[310936730,1704822767829,-2262.47,0.00041589,30]
[310936731,1704822767840,-2095.74,0.00041589,30]
[310936732,1704822767849,-766.2,0.00041589,30]
[310936733,1704822767859,-4048.91,0.00041589,30]
[310936734,1704822767870,-5660.14,0.00041589,30]
[310936735,1704822767880,-629.69,0.00041589,30]
[310936736,1704822767891,-533.62,0.00041589,30]
[310936737,1704822767902,-500.0,0.00041589,30]
[310936738,1704822767912,-773.42,0.00041589,30]
[310936739,1704822767922,-1632.87,0.00041589,30]
[310936740,1704822767932,-2323.31,0.00041589,30]
[310936741,1704822767943,-516.98,0.00041589,30]
[310936742,1704822767953,-2208.88,0.00041589,30]
[310936743,1704822767962,-687.15,0.00041589,30]
[310936744,1704822767973,-641.49,0.00041589,30]
[310936745,1704822767984,-11260.39,0.00041589,30]
[310936746,1704822767995,-720.42,0.00041589,30]
[310936747,1704822768005,-909.51,0.00041589,30]
[310936748,1704822768016,-5222.0,0.00041589,30]
[310936749,1704822768027,-1861.66,0.00041589,30]
[310936750,1704822768038,-500.0,0.00041589,30]
[310936751,1704822768048,-500.0,0.00041589,30]
[310936752,1704822768058,-2706.98,0.00041589,30]
[310936753,1704822768067,-1000.0,0.00041589,30]
[310936754,1704822768077,-873.72,0.00041589,30]
[310936755,1704822768087,-892.91,0.00041589,30]
[310936756,1704822768098,-205.67446718,0.00041589,30]
[310936757,1704822768107,-5255.79,0.00041589,30]
[310936758,1704822768118,-877.85,0.00041589,30]
[310936759,1704822768129,-500.0,0.00041589,30]
[310936760,1704822768139,-500.0,0.00041589,30]
[310936761,1704822768150,-2821.26,0.00041589,30]
[310936762,1704822768160,-500.0,0.00041589,30]
[310936763,1704822768170,-5683.38,0.00041589,30]
[310936764,1704822768180,-500.0,0.00041589,30]
[310936765,1704822768190,-2549.41,0.00041589,30]
[310936766,1704822768201,-2896.34,0.00041589,30]
[310936767,1704822768210,-500.0,0.00041589,30]
[310936768,1704822768220,-4548.33,0.00041589,30]
[310936769,1704822768229,-2314.18,0.00041589,30]
[310936770,1704822768239,-500.0,0.00041589,30]
[310936771,1704822768249,-2089.66,0.00041589,30]
[310936772,1704822768258,-606.99,0.00041589,30]
[310936773,1704822768269,-641.77,0.00041589,30]
[310936774,1704822768278,-500.0,0.00041589,30]
[310936775,1704822768288,-3012.02,0.00041589,30]
[310936776,1704822768298,-2874.45,0.00041589,30]
[310936777,1704822768308,-847.35,0.00041589,30]
[310936778,1704822768317,-4927.93,0.00041589,30]
[310936779,1704822768327,-1016.59,0.00041589,30]
[310936780,1704822768336,-1577.99,0.00041589,30]
[310936781,1704822768348,-3470.52,0.00041589,30]
[310936782,1704822768357,-500.0,0.00041589,30]
[310936783,1704822768367,-1414.19,0.00041589,30]
[310936784,1704822768377,-500.0,0.00041589,30]
[310936785,1704822768386,-500.0,0.00041589,30]
[310936786,1704822768396,-2293.4,0.00041589,30]
[310936787,1704822768405,-500.0,0.00041589,30]
[310936788,1704822768415,-500.0,0.00041589,30]
[310936789,1704822768425,-1523.26,0.00041589,30]
[310936790,1704822768434,-5553.45,0.00041589,30]
[310936791,1704822768445,-1021.68,0.00041589,30]
[310936792,1704822768454,-646.27937322,0.00041589,30]
[310936793,1704822768463,-1073.92,0.00041589,30]
[310936794,1704822768473,-440.84278781,0.00041589,30]
[310936795,1704822768482,-1321.2,0.00041589,30]
[310936796,1704822768492,-500.0,0.00041589,30]
[310936797,1704822768502,-500.0,0.00041589,30]
[310936798,1704822768516,-444.85028207,0.00041589,30]
[310936799,1704822768527,-5163.1,0.00041589,30]
[310936800,1704822768536,-1629.25,0.00041589,30]
[310936801,1704822768545,-500.0,0.00041589,30]
[310936802,1704822768555,-857.66,0.00041589,30]
[310936803,1704822768565,-2550.91,0.00041589,30]
[310936804,1704822768575,-644.1,0.00041589,30]
[310936805,1704822768584,-1296.82,0.00041589,30]
[310936806,1704822768594,-658.7,0.00041589,30]
[310936807,1704822768604,-2556.57,0.00041589,30]
[310936808,1704822768614,-671.14,0.00041589,30]
[310936809,1704822768624,-4084.77,0.00041589,30]
[310936810,1704822768634,-1846.0,0.0004159,3]
[310936811,1704822768643,-213.0,0.000416,2]
[310936812,1704822768653,-152.64,0.000416,7]
[310936813,1704822768662,-1166.65,0.00041643,38]
[310936814,1704822768672,-3000.0,0.00041643,120]
[310936815,1704822768681,-5746.28,0.00041643,30]
[310936816,1704822768691,-5746.28,0.00041643,30]
[310936817,1704822768700,-5746.28,0.00041643,30]
[310936818,1704822768709,-5746.28,0.00041643,30]
[310936819,1704822768718,-5746.28,0.00041643,30]
[310936820,1704822768728,-5746.28,0.00041643,30]
[310936821,1704822768738,-5746.28,0.00041643,30]
[310936822,1704822768747,-217.0,0.0004165,2]
[310936823,1704822768756,-9748.06358886,0.00041666,10]
[310936824,1704822768765,-3962.41434848,0.00041666,5]
[310936825,1704822768776,-4578.48,0.00041671,5]
[310936826,1704822768786,-500.0,0.00041671,30]
[310936827,1704822768796,-500.0,0.00041671,30]
[310936828,1704822768804,-492.79154592,0.00041671,30]
[310936829,1704822768814,-500.0,0.00041671,30]
[310936830,1704822768824,-500.0,0.00041671,30]
[310936831,1704822768833,-807.49,0.00041671,30]
[310936832,1704822768842,-1064.88,0.00041671,30]
[310936833,1704822768852,-504.18,0.00041671,30]
[310936834,1704822768861,-500.0,0.00041671,30]
[310936835,1704822768870,-500.0,0.00041671,30]
[310936836,1704822768879,-1384.92,0.00041671,30]
[310936837,1704822768888,-1040.33,0.00041671,30]
[310936838,1704822768897,-500.0,0.00041671,30]
[310936839,1704822768906,-678.56,0.00041671,30]
[310936840,1704822768916,-500.0,0.00041671,30]
[310936841,1704822768925,-500.0,0.00041671,30]
[310936842,1704822769038,-1183.13,0.00041671,30]
[310936843,1704822769047,-500.0,0.00041671,2]
[310936844,1704822769057,-500.0,0.00041671,30]
[310936845,1704822769066,-500.0,0.00041671,30]
[310936846,1704822769075,-500.0,0.00041671,30]
[310936847,1704822769084,-500.0,0.00041671,30]
[310936848,1704822769093,-500.0,0.00041671,30]
[310936849,1704822769102,-500.0,0.00041671,30]
[310936850,1704822769111,-500.0,0.00041671,30]
[310936851,1704822769120,-500.0,0.00041671,30]
[310936852,1704822769129,-500.0,0.00041671,30]
[310936853,1704822769138,-500.0,0.00041671,30]
[310936854,1704822769148,-848.16,0.00041671,30]
[310936855,1704822769157,-500.0,0.00041671,30]
[310936856,1704822769166,-996.71,0.00041671,30]
[310936857,1704822769175,-582.4,0.00041671,30]
[310936858,1704822769184,-500.0,0.00041671,30]
[310936859,1704822769193,-559.83918022,0.00041671,30]
[310936860,1704822769203,-500.0,0.00041671,30]
[310936861,1704822769212,-500.0,0.00041671,30]
[310936862,1704822769221,-500.0,0.00041671,30]
[310936863,1704822769231,-763.12,0.00041671,30]
[310936864,1704822769240,-500.0,0.00041671,30]
[310936865,1704822769249,-629.14,0.00041671,2]
[310936866,1704822769258,-500.0,0.00041671,30]
[310936867,1704822769267,-361.33374658,0.00041671,30]
[310936868,1704822769276,-524.81753111,0.00041671,30]
[310936869,1704822769286,-668.65,0.00041671,30]
[310936870,1704822769295,-823.05,0.00041671,30]
[310936871,1704822769304,-500.0,0.00041671,30]
[310936872,1704822769313,-500.0,0.00041671,30]
[310936873,1704822769321,-500.0,0.00041671,30]
[310936874,1704822769331,-500.0,0.00041671,30]
[310936875,1704822769340,-500.0,0.00041671,30]
[310936876,1704822769349,-723.9,0.00041671,30]
[310936877,1704822769357,-782.81,0.00041671,30]
[310936878,1704822769367,-500.0,0.00041671,30]
[310936879,1704822769376,-500.0,0.00041671,30]
[310936880,1704822769385,-500.0,0.00041671,30]
[310936881,1704822769394,-969.63,0.00041671,30]
[310936882,1704822769403,-634.62786121,0.00041671,30]
[310936883,1704822769412,-566.95,0.00041671,30]
[310936884,1704822769421,-500.0,0.00041671,30]
[310936885,1704822769430,-500.0,0.00041671,30]
[310936886,1704822769439,-500.0,0.00041671,30]
[310936887,1704822769449,-500.0,0.00041671,30]
[310936888,1704822769458,-623.06,0.00041671,30]
[310936889,1704822769467,-500.0,0.00041671,30]
[310936890,1704822769476,-500.0,0.00041671,30]
[310936891,1704822769486,-516.99,0.00041671,30]
[310936892,1704822769495,-500.0,0.00041671,30]
[310936893,1704822769506,-536.91782212,0.00041671,30]
[310936894,1704822769516,-702.04,0.00041671,30]
[310936895,1704822769526,-500.0,0.00041671,30]
[310936896,1704822769536,-500.0,0.00041671,30]
[310936897,1704822769546,-500.0,0.00041671,30]
[310936898,1704822769557,-716.56,0.00041671,30]
[310936899,1704822769566,-748.95,0.00041671,30]
[310936900,1704822769576,-500.0,0.00041671,15]
[310936901,1704822769585,-500.0,0.00041671,30]
[310936902,1704822769594,-585.05883873,0.00041671,30]
[310936903,1704822769604,-672.74,0.00041671,30]
[310936904,1704822769613,-542.0711737,0.00041671,30]
[310936905,1704822769623,-500.0,0.00041671,30]
[310936906,1704822769632,-500.0,0.00041671,30]
[310936907,1704822769642,-500.0,0.00041671,30]
[310936908,1704822769651,-647.35,0.00041671,30]
[310936909,1704822769660,-685.1,0.00041671,30]
[310936910,1704822769669,-500.0,0.00041671,30]
[310936911,1704822769679,-243.34997955,0.00041671,30]
[310936912,1704822769689,-1120.19,0.00041671,30]
[310936913,1704822769698,-500.0,0.00041671,30]
[310936914,1704822769707,-500.0,0.00041671,30]
[310936915,1704822769716,-500.0,0.00041671,30]
[310936916,1704822769725,-500.0,0.00041671,30]
[310936917,1704822769735,-500.0,0.00041671,30]
[310936918,1704822769744,-500.0,0.00041671,30]
[310936919,1704822769752,-500.0,0.00041671,30]
[310936920,1704822769762,-500.0,0.00041671,30]
[310936921,1704822769771,-500.0,0.00041671,30]
[310936922,1704822769781,-647.58,0.00041671,30]
[310936923,1704822769791,-500.0,0.00041671,30]
[310936924,1704822769800,-500.0,0.00041671,30]
[310936925,1704822769810,-429.68266615,0.00041671,30]
[310936926,1704822769820,-558.85,0.00041671,30]
[310936927,1704822769829,-742.86,0.00041671,30]
[310936928,1704822769838,-581.63,0.00041671,30]
[310936929,1704822769847,-807.83,0.00041671,30]
[310936930,1704822769856,-500.0,0.00041671,30]
[310936931,1704822769876,-500.0,0.00041671,30]
[310936932,1704822769886,-503.11880084,0.00041671,30]
[310936933,1704822769895,-163.27106084,0.00041671,30]
[310936934,1704822769905,-500.0,0.00041671,30]
[310936935,1704822769914,-500.0,0.00041671,30]
[310936936,1704822769924,-517.95,0.00041671,30]
[310936937,1704822769933,-500.0,0.00041671,30]
[310936938,1704822769942,-500.0,0.00041671,30]
[310936939,1704822769952,-632.05,0.00041671,30]
[310936940,1704822769962,-500.0,0.00041671,30]
[310936941,1704822769972,-513.58392021,0.00041671,30]
[310936942,1704822769981,-500.0,0.00041671,30]
[310936943,1704822769991,-500.0,0.00041671,30]
[310936944,1704822770000,-500.0,0.00041671,30]
[310936945,1704822770009,-654.13,0.00041671,30]
[310936946,1704822770019,-899.39,0.00041671,30]
[310936947,1704822770029,-500.0,0.00041671,30]
[310936948,1704822770039,-500.0,0.00041671,30]
[310936949,1704822770049,-567.44738784,0.00041671,30]
[310936950,1704822770058,-537.47,0.00041671,30]
[310936951,1704822770068,-500.0,0.00041671,30]
[310936952,1704822770077,-680.46,0.00041671,30]
[310936953,1704822770087,-797.4,0.00041671,30]
[310936954,1704822770096,-500.0,0.00041671,7]
[310936955,1704822770106,-1018.51,0.00041671,30]
[310936956,1704822770115,-856.07,0.00041671,30]
[310936957,1704822770125,-500.0,0.00041671,30]
[310936958,1704822770134,-500.0,0.00041671,30]
[310936959,1704822770144,-500.0,0.00041671,30]
[310936960,1704822770155,-500.0,0.00041671,30]
[310936961,1704822770165,-1130.34,0.00041671,30]
[310936962,1704822770175,-593.8,0.00041671,30]
[310936963,1704822770186,-500.0,0.00041671,30]
[310936964,1704822770197,-500.0,0.00041671,30]
[310936965,1704822770207,-511.72,0.00041671,30]
[310936966,1704822770218,-952.27,0.00041671,30]
[310936967,1704822770228,-528.56,0.00041671,30]
[310936968,1704822770239,-500.0,0.00041671,30]
[310936969,1704822770250,-691.64,0.00041671,30]
[310936970,1704822770260,-520.03837001,0.00041671,30]
[310936971,1704822770271,-500.0,0.00041671,30]
[310936972,1704822770282,-500.0,0.00041671,30]
[310936973,1704822770292,-500.0,0.00041671,30]
[310936974,1704822770301,-1470.07,0.00041671,30]
[310936975,1704822770312,-834.95,0.00041671,30]
[310936976,1704822770322,-500.0,0.00041671,30]
[310936977,1704822770331,-603.81,0.00041671,30]
[310936978,1704822770341,-500.0,0.00041671,30]
[310936979,1704822770351,-500.0,0.00041671,30]
[310936980,1704822770361,-3062.67,0.00041671,30]
[310936981,1704822770371,-637.53,0.00041671,30]
[310936982,1704822770380,-500.0,0.00041671,30]
[310936983,1704822770390,-500.0,0.00041671,30]
[310936984,1704822770400,-500.0,0.00041671,30]
[310936985,1704822770410,-504.53483185,0.00041671,30]
[310936986,1704822770420,-500.0,0.00041671,30]
[310936987,1704822770430,-951.54,0.00041671,30]
[310936988,1704822770440,-1554.84,0.00041671,30]
[310936989,1704822770450,-500.0,0.00041671,30]
[310936990,1704822770460,-500.0,0.00041671,30]
[310936991,1704822770470,-783.64,0.00041671,30]
[310936992,1704822770479,-500.0,0.00041671,30]
[310936993,1704822770489,-500.0,0.00041671,30]
[310936994,1704822770499,-228.5456777,0.00041671,30]
[310936995,1704822770510,-500.0,0.00041671,30]
[310936996,1704822770522,-1000.0,0.00041671,2]
[310936997,1704822770531,-955.99,0.00041671,30]
[310936998,1704822770541,-500.0,0.00041671,30]
[310936999,1704822770551,-584.0,0.00041671,30]
[310937000,1704822770561,-500.0,0.00041671,30]
[310937001,1704822770570,-500.0,0.00041671,30]
[310937002,1704822770580,-742.2,0.00041671,30]
[310937003,1704822770590,-500.0,0.00041671,30]
[310937004,1704822770600,-667.03,0.00041671,30]
[310937005,1704822770610,-500.0,0.00041671,30]
[310937006,1704822770620,-1579.23,0.00041671,30]
[310937007,1704822770630,-500.0,0.00041671,30]
[310937008,1704822770641,-500.0,0.00041671,30]
[310937009,1704822770651,-1683.26,0.00041671,30]
[310937010,1704822770661,-732.8,0.00041671,30]
[310937011,1704822770671,-500.0,0.00041671,30]
[310937012,1704822770682,-500.0,0.00041671,30]
[310937013,1704822770691,-500.0,0.00041671,30]
[310937014,1704822770701,-1701.57,0.00041671,30]
[310937015,1704822770711,-500.0,0.00041671,30]
[310937016,1704822770720,-609.24,0.00041671,30]
[310937017,1704822770731,-995.31,0.00041671,30]
[310937018,1704822770741,-500.0,0.00041671,30]
[310937019,1704822770750,-500.0,0.00041671,30]
[310937020,1704822770761,-546.32,0.00041671,30]
[310937021,1704822770772,-1075.03,0.00041671,30]
[310937022,1704822770783,-1289.05,0.00041671,30]
[310937023,1704822770794,-500.0,0.00041671,30]
[310937024,1704822770804,-500.0,0.00041671,30]
[310937025,1704822770815,-500.0,0.00041671,30]
[310937026,1704822770826,-1605.53,0.00041671,30]
[310937027,1704822770836,-500.0,0.00041671,30]
[310937028,1704822770846,-746.35,0.00041671,30]
[310937029,1704822770856,-1189.53,0.00041671,30]
[310937030,1704822770867,-500.0,0.00041671,30]
[310937031,1704822770877,-1111.16,0.00041671,30]
[310937032,1704822770888,-500.0,0.00041671,30]
[310937033,1704822770898,-566.22,0.00041671,30]
[310937034,1704822770908,-1587.98,0.00041671,30]
[310937035,1704822770919,-927.99,0.00041671,30]
[310937036,1704822770929,-500.0,0.00041671,30]
[310937037,1704822770939,-500.0,0.00041671,30]
[310937038,1704822770948,-665.79,0.00041671,30]
[310937039,1704822770958,-1083.99,0.00041671,30]
[310937040,1704822770968,-1352.1,0.00041671,30]
[310937041,1704822770978,-500.0,0.00041671,30]
[310937042,1704822770989,-657.61,0.00041671,30]
[310937043,1704822770999,-831.46,0.00041671,30]
[310937044,1704822771009,-500.0,0.00041671,30]
[310937045,1704822771019,-876.27,0.00041671,30]
[310937046,1704822771031,-1165.49,0.00041671,30]
[310937047,1704822771041,-1499.79,0.00041671,30]
[310937048,1704822771051,-450.55277972,0.00041671,30]
[310937049,1704822771061,-1224.45,0.00041671,30]
[310937050,1704822771071,-585.09,0.00041671,30]
[310937051,1704822771081,-500.0,0.00041671,30]
[310937052,1704822771091,-1187.3,0.00041671,30]
[310937053,1704822771101,-500.0,0.00041671,30]
[310937054,1704822771111,-1451.41,0.00041671,30]
[310937055,1704822771121,-1109.01,0.00041671,30]
[310937056,1704822771131,-1165.31,0.00041671,30]
[310937057,1704822771141,-500.0,0.00041671,30]
[310937058,1704822771151,-500.0,0.00041671,30]
[310937059,1704822771161,-500.0,0.00041671,30]
[310937060,1704822771171,-1030.53,0.00041671,30]
[310937061,1704822771182,-1058.21,0.00041671,30]
[310937062,1704822771192,-713.27,0.00041671,30]
[310937063,1704822771202,-500.0,0.00041671,30]
[310937064,1704822771212,-1268.66,0.00041671,30]
[310937065,1704822771223,-2171.66,0.00041671,30]
[310937066,1704822771234,-657.69,0.00041671,30]
[310937067,1704822771245,-300.0,0.00041671,30]
[310937068,1704822771256,-816.63,0.00041671,5]
[310937069,1704822771267,-698.65,0.00041671,30]
[310937070,1704822771280,-835.19,0.00041671,30]
[310937071,1704822771290,-500.0,0.00041671,30]
[310937072,1704822771301,-500.0,0.00041671,30]
[310937073,1704822771311,-500.0,0.00041671,30]
[310937074,1704822771322,-617.92,0.00041671,30]
[310937075,1704822771333,-3829.67,0.00041671,30]
[310937076,1704822771343,-1000.0,0.00041671,2]
[310937077,1704822771355,-500.0,0.00041671,2]
[310937078,1704822771367,-653.11,0.00041671,30]
[310937079,1704822771377,-500.0,0.00041671,30]
[310937080,1704822771388,-1196.79,0.00041671,30]
[310937081,1704822771399,-500.0,0.00041671,30]
[310937082,1704822771410,-500.0,0.00041671,30]
[310937083,1704822771421,-924.68,0.00041671,30]
[310937084,1704822771432,-1534.65,0.00041671,30]
[310937085,1704822771443,-1071.73,0.00041671,30]
[310937086,1704822771453,-500.0,0.00041671,30]
[310937087,1704822771463,-910.34,0.00041671,30]
[310937088,1704822771474,-563.27,0.00041671,30]
[310937089,1704822771485,-2625.83,0.00041671,30]
[310937090,1704822771495,-1003.2,0.00041671,30]
[310937091,1704822771507,-1069.06,0.00041671,30]
[310937092,1704822771518,-693.77,0.00041671,30]
[310937093,1704822771534,-3358.65,0.00041671,30]
[310937094,1704822771544,-3778.52,0.00041671,30]
[310937095,1704822771554,-775.18,0.00041671,30]
[310937096,1704822771565,-500.0,0.00041671,30]
[310937097,1704822771576,-457.62551548,0.00041671,30]
[310937098,1704822771586,-1018.17,0.00041671,30]
[310937099,1704822771596,-500.0,0.00041671,30]
[310937100,1704822771606,-627.54,0.00041671,30]
[310937101,1704822771616,-1597.58,0.00041671,30]
[310937102,1704822771626,-680.27,0.00041671,30]
[310937103,1704822771637,-1108.25,0.00041671,30]
[310937104,1704822771648,-680.58,0.00041671,30]
[310937105,1704822771660,-500.0,0.00041671,30]
[310937106,1704822771671,-840.77,0.00041671,30]
[310937107,1704822771681,-500.0,0.00041671,30]
[310937108,1704822771691,-500.0,0.00041671,30]
[310937109,1704822771702,-1688.18,0.00041671,30]
[310937110,1704822771713,-500.0,0.00041671,30]
[310937111,1704822771723,-500.0,0.00041671,30]
[310937112,1704822771733,-764.23,0.00041671,30]
[310937113,1704822771744,-500.0,0.00041671,30]
[310937114,1704822771755,-500.0,0.00041671,30]
[310937115,1704822771766,-500.0,0.00041671,30]
[310937116,1704822771780,-1292.97,0.00041671,30]
[310937117,1704822771791,-2704.06,0.00041671,30]
[310937118,1704822771804,-897.63,0.00041671,30]
[310937119,1704822771815,-689.03,0.00041671,30]
[310937120,1704822771825,-1997.42,0.00041671,30]
[310937121,1704822771835,-753.25,0.00041671,30]
[310937122,1704822771845,-863.4,0.00041671,30]
[310937123,1704822771855,-500.0,0.00041671,30]
[310937124,1704822771865,-1469.75,0.00041671,30]
[310937125,1704822771876,-1538.51,0.00041671,30]
[310937126,1704822771886,-500.0,0.00041671,30]
[310937127,1704822771896,-744.34,0.00041671,30]
[310937128,1704822771906,-500.0,0.00041671,30]
[310937129,1704822771916,-500.0,0.00041671,30]
[310937130,1704822771926,-1416.77,0.00041671,30]
[310937131,1704822771936,-544.19,0.00041671,30]
[310937132,1704822771946,-1752.19,0.00041671,30]
[310937133,1704822771955,-280.85645622,0.00041671,30]
[310937134,1704822771966,-500.0,0.00041671,10]
[310937135,1704822771975,-500.0,0.00041671,30]
[310937136,1704822771985,-500.0,0.00041671,30]
[310937137,1704822771995,-992.88,0.00041671,30]
[310937138,1704822772005,-907.17,0.00041671,30]
[310937139,1704822772015,-820.02,0.00041671,30]
[310937140,1704822772026,-696.79,0.00041671,30]
[310937141,1704822772036,-1042.21,0.00041671,30]
[310937142,1704822772046,-830.16,0.00041671,30]
[310937143,1704822772056,-921.85,0.00041671,30]
[310937144,1704822772066,-500.0,0.00041671,30]
[310937145,1704822772076,-936.43,0.00041671,30]
[310937146,1704822772086,-500.0,0.00041671,30]
[310937147,1704822772096,-500.0,0.00041671,30]
[310937148,1704822772106,-500.0,0.00041671,30]
[310937149,1704822772116,-500.0,0.00041671,30]
[310937150,1704822772126,-500.0,0.00041671,30]
[310937151,1704822772136,-500.0,0.00041671,30]
[310937152,1704822772146,-3608.68,0.00041671,30]
[310937153,1704822772156,-1062.16,0.00041671,30]
[310937154,1704822772166,-797.98,0.00041671,30]
[310937155,1704822772176,-848.43,0.00041671,30]
[310937156,1704822772186,-594.13,0.00041671,30]
[310937157,1704822772196,-543.9,0.00041671,30]
[310937158,1704822772206,-500.0,0.00041671,30]
[310937159,1704822772216,-500.0,0.00041671,30]
[310937160,1704822772227,-765.38,0.00041671,30]
[310937161,1704822772237,-1432.21,0.00041671,30]
[310937162,1704822772247,-1359.32,0.00041671,30]
[310937163,1704822772257,-500.0,0.00041671,30]
[310937164,1704822772268,-500.0,0.00041671,30]
[310937165,1704822772279,-1854.87,0.00041671,30]
[310937166,1704822772290,-720.0,0.00041671,30]
[310937167,1704822772300,-1281.62,0.00041671,30]
[310937168,1704822772310,-558.71,0.00041671,30]
[310937169,1704822772320,-1462.19,0.00041671,30]
[310937170,1704822772330,-500.0,0.00041671,30]
[310937171,1704822772340,-543.96,0.00041671,30]
[310937172,1704822772350,-500.0,0.00041671,30]
[310937173,1704822772360,-1104.04,0.00041671,30]
[310937174,1704822772370,-500.0,0.00041671,30]
[310937175,1704822772380,-500.0,0.00041671,30]
[310937176,1704822772391,-500.0,0.00041671,2]
[310937177,1704822772400,-2707.71,0.00041671,30]
[310937178,1704822772411,-651.83,0.00041671,30]
[310937179,1704822772421,-851.87,0.00041671,30]
[310937180,1704822772431,-252.37903255,0.00041671,30]
[310937181,1704822772442,-708.74,0.00041671,30]
[310937182,1704822772452,-500.0,0.00041671,30]
[310937183,1704822772463,-500.0,0.00041671,30]
[310937184,1704822772474,-596.03,0.00041671,30]
[310937185,1704822772484,-859.98,0.00041671,30]
[310937186,1704822772495,-1208.31,0.00041671,30]
[310937187,1704822772507,-1009.5,0.00041671,30]
[310937188,1704822772518,-1834.86,0.00041671,30]
[310937189,1704822772530,-2228.31,0.00041671,30]
[310937190,1704822772541,-500.0,0.00041671,30]
[310937191,1704822772551,-500.0,0.00041671,30]
[310937192,1704822772562,-500.0,0.00041671,30]
[310937193,1704822772572,-758.85,0.00041671,30]
[310937194,1704822772582,-500.0,0.00041671,30]
[310937195,1704822772593,-1653.94,0.00041671,30]
[310937196,1704822772604,-850.13,0.00041671,30]
[310937197,1704822772614,-657.1,0.00041671,30]
[310937198,1704822772624,-2251.85,0.00041671,30]
[310937199,1704822772635,-1855.79,0.00041671,30]
[310937200,1704822772646,-1305.33,0.00041671,30]
[310937201,1704822772657,-339.39316386,0.00041671,30]
[310937202,1704822772668,-500.0,0.00041671,30]
[310937203,1704822772678,-1047.74,0.00041671,30]
[310937204,1704822772688,-500.0,0.00041671,30]
[310937205,1704822772699,-500.0,0.00041671,30]
[310937206,1704822772710,-2864.14,0.00041671,30]
[310937207,1704822772721,-500.0,0.00041671,30]
[310937208,1704822772732,-514.02,0.00041671,30]
[310937209,1704822772982,-500.0,0.00041671,30]
[310937210,1704822772992,-942.34,0.00041671,30]
[310937211,1704822773001,-1069.4,0.00041671,30]
[310937212,1704822773011,-2011.82,0.00041671,30]
[310937213,1704822773021,-1000.0,0.00041671,14]